[Event "*** Titled Tuesday Blitz"]
[Site "Chess.com"]
[Date "2021.03.09"]
[Round "5"]
[White "ljuks68"]
[Black "Vesper2018"]
[Result "0-1"]
[WhiteElo "2436"]
[BlackElo "2590"]
[TimeControl "180+1"]
[EndTime "10:57:27 PST"]
[Termination "Vesper2018 won by resignation"]

1. e4 {[%clk 0:02:59.7]} 1... c5 {[%clk 0:02:59.7]} 2. Nf3 {[%clk 0:02:59.3]}
2... d6 {[%clk 0:03:00.1]} 3. d4 {[%clk 0:02:59.7]} 3... cxd4 {[%clk 0:03:00.4]}
4. Nxd4 {[%clk 0:03:00.3]} 4... Nf6 {[%clk 0:03:00.9]} 5. Nc3 {[%clk 0:03:00.7]}
5... a6 {[%clk 0:03:01.3]} 6. Bg5 {[%clk 0:03:00.8]} 6... Nbd7 {[%clk 0:02:59]}
7. Qe2 {[%clk 0:02:59.8]} 7... e6 {[%clk 0:02:55.8]} 8. O-O-O {[%clk 0:02:53]}
8... Qc7 {[%clk 0:02:52.1]} 9. g4 {[%clk 0:02:51]} 9... Be7 {[%clk 0:02:35.5]}
10. Bd2 {[%clk 0:02:47.2]} 10... h6 {[%clk 0:02:20]} 11. h4 {[%clk 0:02:46.5]}
11... b5 {[%clk 0:02:13.6]} 12. a3 {[%clk 0:02:45.8]} 12... Bb7 {[%clk
0:02:11.5]} 13. Bg2 {[%clk 0:02:44.7]} 13... Nb6 {[%clk 0:01:45.2]} 14. g5
{[%clk 0:02:42.1]} 14... Nfd7 {[%clk 0:01:44.8]} 15. g6 {[%clk 0:02:42.1]} 15...
Qc4 {[%clk 0:01:30.5]} 16. gxf7+ {[%clk 0:02:37]} 16... Kxf7 {[%clk 0:01:30.6]}
17. Qh5+ {[%clk 0:01:55.7]} 17... g6 {[%clk 0:01:27]} 18. Qf3+ {[%clk
0:01:55.5]} 18... Bf6 {[%clk 0:01:21.3]} 19. Nb3 {[%clk 0:01:52.8]} 19... Qc7
{[%clk 0:00:43.8]} 20. Bg5 {[%clk 0:01:51.5]} 20... Rac8 {[%clk 0:00:34.7]} 21.
Bxf6 {[%clk 0:01:50.7]} 21... Nxf6 {[%clk 0:00:34.3]} 22. Qe2 {[%clk 0:01:42.3]}
22... Na4 {[%clk 0:00:33.6]} 23. Nxa4 {[%clk 0:01:39]} 23... bxa4 {[%clk
0:00:32.7]} 24. Na5 {[%clk 0:01:29.1]} 24... Qxa5 {[%clk 0:00:30.2]} 25. Rxd6
{[%clk 0:01:29]} 25... Qe5 {[%clk 0:00:25.3]} 26. Rhd1 {[%clk 0:01:26.3]} 26...
Rc7 {[%clk 0:00:25.2]} 27. f4 {[%clk 0:01:22.5]} 27... Qxf4+ {[%clk 0:00:21.3]}
28. Kb1 {[%clk 0:01:22.9]} 28... Qe5 {[%clk 0:00:20.9]} 29. Bh3 {[%clk
0:01:16.4]} 29... Re8 {[%clk 0:00:20.5]} 30. Qe3 {[%clk 0:01:07.5]} 30... Bxe4
{[%clk 0:00:20]} 31. Qxh6 {[%clk 0:01:07.2]} 31... Bxc2+ {[%clk 0:00:20]} 0-1

[Event "*** Titled Tuesday Blitz"]
[Site "Chess.com"]
[Date "2021.03.09"]
[Round "5"]
[White "muchojogo"]
[Black "Fiona"]
[Result "1-0"]
[WhiteElo "2367"]
[BlackElo "2201"]
[TimeControl "180+1"]
[EndTime "10:57:27 PST"]
[Termination "muchojogo won on time"]

1. d4 {[%clk 0:03:00.9]} 1... d6 {[%clk 0:02:59.3]} 2. e4 {[%clk 0:02:59.8]}
2... Nf6 {[%clk 0:02:58.2]} 3. Nc3 {[%clk 0:03:00.4]} 3... Nbd7 {[%clk
0:02:58.3]} 4. Nf3 {[%clk 0:02:59.8]} 4... e5 {[%clk 0:02:58.5]} 5. g4 {[%clk
0:03:00.4]} 5... h6 {[%clk 0:02:50.3]} 6. h3 {[%clk 0:03:00.5]} 6... Be7 {[%clk
0:02:47.1]} 7. Bg2 {[%clk 0:03:00.1]} 7... c6 {[%clk 0:02:46.7]} 8. Be3 {[%clk
0:02:59.8]} 8... Qc7 {[%clk 0:02:42.2]} 9. Qd2 {[%clk 0:02:56.9]} 9... b5 {[%clk
0:02:40]} 10. a3 {[%clk 0:02:46.9]} 10... a5 {[%clk 0:02:39.5]} 11. O-O {[%clk
0:02:45.7]} 11... O-O {[%clk 0:02:24.2]} 12. dxe5 {[%clk 0:02:41]} 12... dxe5
{[%clk 0:02:16.4]} 13. Bxh6 {[%clk 0:02:26.4]} 13... gxh6 {[%clk 0:02:10.8]} 14.
Qxh6 {[%clk 0:02:27.3]} 14... Re8 {[%clk 0:02:05.3]} 15. g5 {[%clk 0:02:25.9]}
15... Bf8 {[%clk 0:01:54.4]} 16. Qh4 {[%clk 0:02:18.1]} 16... Nh7 {[%clk
0:01:48.9]} 17. Ne2 {[%clk 0:02:18]} 17... Bg7 {[%clk 0:01:38.7]} 18. Ng3 {[%clk
0:02:16.4]} 18... Ndf8 {[%clk 0:01:38]} 19. Nf5 {[%clk 0:02:15.1]} 19... Ng6
{[%clk 0:01:34]} 20. Qg4 {[%clk 0:02:08.2]} 20... Nhf8 {[%clk 0:01:12.2]} 21. h4
{[%clk 0:02:07.1]} 21... Nf4 {[%clk 0:01:08.2]} 22. h5 {[%clk 0:02:05.1]} 22...
Bxf5 {[%clk 0:00:58.9]} 23. exf5 {[%clk 0:02:02.4]} 23... Qc8 {[%clk 0:00:48.1]}
24. Rfe1 {[%clk 0:01:55.4]} 24... Nd7 {[%clk 0:00:45.7]} 25. Nh4 {[%clk
0:01:54.9]} 25... Nxg2 {[%clk 0:00:27.6]} 26. Nxg2 {[%clk 0:01:53.8]} 26... e4
{[%clk 0:00:28.3]} 27. f6 {[%clk 0:01:45.5]} 27... Bf8 {[%clk 0:00:16.4]} 28.
Rxe4 {[%clk 0:01:44.7]} 28... Rxe4 {[%clk 0:00:12.6]} 29. Qxe4 {[%clk
0:01:45.6]} 29... Qe8 {[%clk 0:00:12.4]} 30. Qxc6 {[%clk 0:01:45.4]} 30... Ne5
{[%clk 0:00:10.6]} 31. Qe4 {[%clk 0:01:34.8]} 31... Bc5 {[%clk 0:00:09.2]} 32.
Re1 {[%clk 0:01:31.9]} 32... Bd6 {[%clk 0:00:05.7]} 33. f4 {[%clk 0:01:32]}
33... Bc5+ {[%clk 0:00:04.7]} 34. Kh1 {[%clk 0:01:32]} 1-0

[Event "*** Titled Tuesday Blitz"]
[Site "Chess.com"]
[Date "2021.03.09"]
[Round "5"]
[White "Sibelephant"]
[Black "sergiochess83"]
[Result "1-0"]
[WhiteElo "3093"]
[BlackElo "2908"]
[TimeControl "180+1"]
[EndTime "10:57:39 PST"]
[Termination "Sibelephant won by resignation"]

1. c4 {[%clk 0:02:59.6]} 1... e5 {[%clk 0:02:58.5]} 2. Nc3 {[%clk 0:02:59.4]}
2... Nf6 {[%clk 0:02:58.1]} 3. Nf3 {[%clk 0:02:59.7]} 3... Nc6 {[%clk
0:02:57.5]} 4. d3 {[%clk 0:02:59.8]} 4... Bb4 {[%clk 0:02:52.5]} 5. Bd2 {[%clk
0:02:59.6]} 5... O-O {[%clk 0:02:51.2]} 6. g3 {[%clk 0:03:00]} 6... a5 {[%clk
0:02:44.6]} 7. Bg2 {[%clk 0:02:59.9]} 7... d6 {[%clk 0:02:44.9]} 8. O-O {[%clk
0:03:00]} 8... h6 {[%clk 0:02:45]} 9. Nd5 {[%clk 0:02:48.6]} 9... Bxd2 {[%clk
0:02:21.1]} 10. Nxd2 {[%clk 0:02:42.9]} 10... Bf5 {[%clk 0:01:57.4]} 11. Rc1
{[%clk 0:02:33.7]} 11... Nh7 {[%clk 0:01:39.1]} 12. h4 {[%clk 0:02:14.5]} 12...
Bg4 {[%clk 0:01:35.8]} 13. Re1 {[%clk 0:02:11.1]} 13... Nd4 {[%clk 0:01:31.6]}
14. Ne3 {[%clk 0:02:03.7]} 14... Bc8 {[%clk 0:01:29]} 15. c5 {[%clk 0:02:01.9]}
15... Nf6 {[%clk 0:01:06.2]} 16. cxd6 {[%clk 0:02:01.3]} 16... cxd6 {[%clk
0:01:03.3]} 17. Nf3 {[%clk 0:01:51.1]} 17... Nxf3+ {[%clk 0:00:57.1]} 18. Bxf3
{[%clk 0:01:51.4]} 18... Be6 {[%clk 0:00:57.7]} 19. Nc4 {[%clk 0:01:30.6]} 19...
Rb8 {[%clk 0:00:49.9]} 20. a4 {[%clk 0:01:26.3]} 20... b5 {[%clk 0:00:36.1]} 21.
axb5 {[%clk 0:01:26.5]} 21... Rxb5 {[%clk 0:00:37]} 22. Qd2 {[%clk 0:01:25.9]}
22... Rb4 {[%clk 0:00:22.9]} 23. Bg2 {[%clk 0:01:17.9]} 23... Bd5 {[%clk
0:00:20.1]} 24. Bxd5 {[%clk 0:01:12.9]} 24... Nxd5 {[%clk 0:00:21]} 25. Ra1
{[%clk 0:01:13.4]} 25... Rb5 {[%clk 0:00:04.4]} 26. Rxa5 {[%clk 0:01:12.8]}
26... Rxa5 {[%clk 0:00:04.4]} 27. Qxa5 {[%clk 0:01:13.4]} 27... Qxa5 {[%clk
0:00:03.9]} 28. Nxa5 {[%clk 0:01:14.3]} 28... Rb8 {[%clk 0:00:04.3]} 29. Nc4
{[%clk 0:01:14.9]} 29... Rb3 {[%clk 0:00:02.8]} 30. Nxd6 {[%clk 0:01:14.3]}
30... Rxb2 {[%clk 0:00:02.7]} 31. Nc4 {[%clk 0:01:14.6]} 31... Rc2 {[%clk
0:00:02.3]} 32. Nxe5 {[%clk 0:01:15]} 32... Nc3 {[%clk 0:00:02.6]} 33. Kf1
{[%clk 0:01:15.5]} 1-0

[Event "*** Titled Tuesday Blitz"]
[Site "Chess.com"]
[Date "2021.03.09"]
[Round "5"]
[White "Lupul_Cenusiu"]
[Black "Vyacheslav_N"]
[Result "1-0"]
[WhiteElo "2569"]
[BlackElo "2356"]
[TimeControl "180+1"]
[EndTime "10:57:40 PST"]
[Termination "Lupul_Cenusiu won by resignation"]

1. d4 {[%clk 0:03:00.9]} 1... d5 {[%clk 0:02:28]} 2. c4 {[%clk 0:02:59.4]} 2...
dxc4 {[%clk 0:02:27.3]} 3. Nf3 {[%clk 0:02:58.7]} 3... a6 {[%clk 0:02:19.8]} 4.
e3 {[%clk 0:02:58.4]} 4... b5 {[%clk 0:02:17.3]} 5. Nc3 {[%clk 0:02:57.4]} 5...
Bb7 {[%clk 0:02:16.1]} 6. a4 {[%clk 0:02:54.1]} 6... c6 {[%clk 0:02:15.9]} 7. g3
{[%clk 0:02:40.6]} 7... Nf6 {[%clk 0:02:13.3]} 8. Bg2 {[%clk 0:02:40.7]} 8... e6
{[%clk 0:02:13.8]} 9. O-O {[%clk 0:02:40.1]} 9... Be7 {[%clk 0:02:06.9]} 10. Ne5
{[%clk 0:02:38.8]} 10... Nd5 {[%clk 0:02:06.8]} 11. e4 {[%clk 0:02:33.3]} 11...
Nb4 {[%clk 0:02:03.2]} 12. Be3 {[%clk 0:02:26.1]} 12... O-O {[%clk 0:01:43.9]}
13. b3 {[%clk 0:02:23.9]} 13... cxb3 {[%clk 0:01:40.1]} 14. Qxb3 {[%clk
0:02:22.8]} 14... Nd7 {[%clk 0:01:40.6]} 15. Nxd7 {[%clk 0:02:19.2]} 15... Qxd7
{[%clk 0:01:40.8]} 16. Rfd1 {[%clk 0:02:18]} 16... Rfd8 {[%clk 0:01:37.9]} 17.
h4 {[%clk 0:02:16.6]} 17... Qe8 {[%clk 0:01:37.3]} 18. Rd2 {[%clk 0:02:06.9]}
18... Rd7 {[%clk 0:01:34.3]} 19. Bh3 {[%clk 0:02:00.5]} 19... Rad8 {[%clk
0:01:34.2]} 20. d5 {[%clk 0:01:59.4]} 20... cxd5 {[%clk 0:01:30.8]} 21. exd5
{[%clk 0:01:56.2]} 21... Nxd5 {[%clk 0:01:29.8]} 22. axb5 {[%clk 0:01:46.6]}
22... Nxc3 {[%clk 0:01:20]} 23. bxa6 {[%clk 0:01:41.3]} 23... Ba8 {[%clk
0:01:07]} 24. Rxd7 {[%clk 0:01:35.9]} 24... Qxd7 {[%clk 0:01:05.1]} 25. Bg2
{[%clk 0:01:26]} 25... Bxg2 {[%clk 0:00:57.6]} 26. Kxg2 {[%clk 0:01:25.6]} 26...
Nd5 {[%clk 0:00:49.4]} 27. a7 {[%clk 0:01:21.4]} 27... Qc6 {[%clk 0:00:49.3]}
28. Kh2 {[%clk 0:01:13.5]} 28... h5 {[%clk 0:00:41.3]} 29. Qb8 {[%clk
0:01:08.4]} 29... Nxe3 {[%clk 0:00:33.9]} 30. Qxd8+ {[%clk 0:01:04.8]} 30... Kh7
{[%clk 0:00:20.6]} 31. a8=Q {[%clk 0:01:00.1]} 1-0

[Event "*** Titled Tuesday Blitz"]
[Site "Chess.com"]
[Date "2021.03.09"]
[Round "5"]
[White "KazakhFighter04"]
[Black "Gerodot71"]
[Result "1-0"]
[WhiteElo "2761"]
[BlackElo "2574"]
[TimeControl "180+1"]
[EndTime "10:57:44 PST"]
[Termination "KazakhFighter04 won by resignation"]

1. d4 {[%clk 0:03:00.9]} 1... Nf6 {[%clk 0:02:59.7]} 2. Nf3 {[%clk 0:03:00.6]}
2... d5 {[%clk 0:02:59.4]} 3. c4 {[%clk 0:03:01]} 3... e6 {[%clk 0:02:59.4]} 4.
g3 {[%clk 0:03:00.9]} 4... Be7 {[%clk 0:02:59.4]} 5. Bg2 {[%clk 0:03:01.5]} 5...
O-O {[%clk 0:02:59.7]} 6. Qc2 {[%clk 0:02:55.8]} 6... dxc4 {[%clk 0:02:51.5]} 7.
Qxc4 {[%clk 0:02:56.7]} 7... a6 {[%clk 0:02:51.9]} 8. Qc2 {[%clk 0:02:54]} 8...
Nc6 {[%clk 0:02:26]} 9. e3 {[%clk 0:02:18.7]} 9... Bd6 {[%clk 0:02:25.3]} 10.
O-O {[%clk 0:02:15.8]} 10... e5 {[%clk 0:02:24.7]} 11. dxe5 {[%clk 0:02:12.9]}
11... Nxe5 {[%clk 0:02:25.6]} 12. Nxe5 {[%clk 0:02:13.6]} 12... Bxe5 {[%clk
0:02:26]} 13. Nd2 {[%clk 0:02:14.5]} 13... Qe7 {[%clk 0:02:03.1]} 14. Nc4 {[%clk
0:02:14.4]} 14... Rd8 {[%clk 0:02:01.4]} 15. Bd2 {[%clk 0:02:05.7]} 15... Bg4
{[%clk 0:00:48.8]} 16. Bxb7 {[%clk 0:01:47.8]} 16... Rab8 {[%clk 0:00:46.9]} 17.
Nxe5 {[%clk 0:01:43]} 17... Qxe5 {[%clk 0:00:46.2]} 18. Bc3 {[%clk 0:01:42.9]}
18... Qh5 {[%clk 0:00:45.4]} 19. Bxf6 {[%clk 0:01:42.5]} 19... gxf6 {[%clk
0:00:17]} 20. Bg2 {[%clk 0:01:42]} 20... Qe5 {[%clk 0:00:15]} 21. b3 {[%clk
0:01:40.4]} 21... Bf5 {[%clk 0:00:15.1]} 22. Qc4 {[%clk 0:01:38.1]} 22... Rb6
{[%clk 0:00:13.5]} 23. Rfd1 {[%clk 0:01:36.4]} 23... Rbd6 {[%clk 0:00:11.8]} 24.
Re1 {[%clk 0:01:32.1]} 24... Rd2 {[%clk 0:00:10.2]} 25. a4 {[%clk 0:01:29.9]}
25... Bd3 {[%clk 0:00:08.9]} 26. Qg4+ {[%clk 0:01:26.7]} 26... Kh8 {[%clk
0:00:08.5]} 27. Rac1 {[%clk 0:01:26.6]} 27... Bf5 {[%clk 0:00:06.9]} 28. Qf4
{[%clk 0:01:24.2]} 28... Qa5 {[%clk 0:00:06.9]} 29. Qxc7 {[%clk 0:01:22.2]}
29... Qb4 {[%clk 0:00:03.3]} 30. h4 {[%clk 0:01:16.8]} 30... Kg7 {[%clk
0:00:02.7]} 31. Qc5 {[%clk 0:01:13.3]} 31... Qxb3 {[%clk 0:00:02.5]} 32. Qxf5
{[%clk 0:01:12.9]} 32... Qb2 {[%clk 0:00:02.8]} 1-0

[Event "*** Titled Tuesday Blitz"]
[Site "Chess.com"]
[Date "2021.03.09"]
[Round "5"]
[White "tk22h"]
[Black "HouseOfDurin"]
[Result "1/2-1/2"]
[WhiteElo "2335"]
[BlackElo "2148"]
[TimeControl "180+1"]
[EndTime "10:57:45 PST"]
[Termination "Game drawn by repetition"]

1. c4 {[%clk 0:03:00.9]} 1... c5 {[%clk 0:03:00]} 2. Nf3 {[%clk 0:02:59.4]} 2...
Nc6 {[%clk 0:03:00.3]} 3. Nc3 {[%clk 0:02:59.2]} 3... e5 {[%clk 0:03:00.8]} 4.
g3 {[%clk 0:02:58.8]} 4... g6 {[%clk 0:03:00.8]} 5. Bg2 {[%clk 0:02:58.2]} 5...
Bg7 {[%clk 0:03:01.4]} 6. O-O {[%clk 0:02:58.2]} 6... Nge7 {[%clk 0:03:02]} 7.
d3 {[%clk 0:02:58.6]} 7... h6 {[%clk 0:03:01]} 8. a3 {[%clk 0:02:58.4]} 8... a5
{[%clk 0:03:00.5]} 9. Rb1 {[%clk 0:02:58.3]} 9... O-O {[%clk 0:02:59.6]} 10. Bd2
{[%clk 0:02:58.4]} 10... d5 {[%clk 0:02:39.1]} 11. cxd5 {[%clk 0:02:57.6]} 11...
Nxd5 {[%clk 0:02:39]} 12. Nxd5 {[%clk 0:02:57]} 12... Qxd5 {[%clk 0:02:38.8]}
13. Qc1 {[%clk 0:02:57]} 13... Qb3 {[%clk 0:01:30.9]} 14. Bxh6 {[%clk
0:02:46.9]} 14... Nd4 {[%clk 0:01:21.1]} 15. Nxd4 {[%clk 0:02:41.7]} 15... cxd4
{[%clk 0:01:20.8]} 16. Bxg7 {[%clk 0:02:41.6]} 16... Kxg7 {[%clk 0:01:21.7]} 17.
Qc4 {[%clk 0:02:39.4]} 17... Be6 {[%clk 0:01:16.8]} 18. Qxb3 {[%clk 0:02:38.5]}
18... Bxb3 {[%clk 0:01:17.7]} 19. Rbc1 {[%clk 0:02:38.7]} 19... Rab8 {[%clk
0:01:06.4]} 20. Rc7 {[%clk 0:02:37.6]} 20... Rfc8 {[%clk 0:00:46]} 21. Rfc1
{[%clk 0:02:36]} 21... Rxc7 {[%clk 0:00:45.4]} 22. Rxc7 {[%clk 0:02:35.9]} 22...
b5 {[%clk 0:00:46.1]} 23. f4 {[%clk 0:02:25.4]} 23... Kf6 {[%clk 0:00:26.1]} 24.
Kf2 {[%clk 0:02:23.1]} 24... b4 {[%clk 0:00:18.7]} 25. axb4 {[%clk 0:02:21.1]}
25... Rxb4 {[%clk 0:00:19.6]} 26. fxe5+ {[%clk 0:02:14.9]} 26... Kxe5 {[%clk
0:00:18.9]} 27. Rc5+ {[%clk 0:02:15]} 27... Kf6 {[%clk 0:00:16.9]} 28. Rxa5
{[%clk 0:02:14.9]} 28... Bd1 {[%clk 0:00:14.2]} 29. Bf3 {[%clk 0:02:05.3]} 29...
Rxb2 {[%clk 0:00:13.3]} 30. Rd5 {[%clk 0:02:04.6]} 30... Rb4 {[%clk 0:00:12.7]}
31. h4 {[%clk 0:02:01]} 31... Bb3 {[%clk 0:00:11.9]} 32. Rd7 {[%clk 0:01:52.7]}
32... Be6 {[%clk 0:00:12.2]} 33. Rb7 {[%clk 0:01:51]} 33... Rxb7 {[%clk
0:00:10.8]} 34. Bxb7 {[%clk 0:01:51]} 34... Ke5 {[%clk 0:00:11.5]} 35. e3 {[%clk
0:01:49.3]} 35... f6 {[%clk 0:00:09.7]} 36. Be4 {[%clk 0:01:45.3]} 36... g5
{[%clk 0:00:08.8]} 37. hxg5 {[%clk 0:01:40.3]} 37... fxg5 {[%clk 0:00:09.7]} 38.
exd4+ {[%clk 0:01:39.9]} 38... Kxd4 {[%clk 0:00:09.5]} 39. Ke2 {[%clk
0:01:39.2]} 39... Bg4+ {[%clk 0:00:07.9]} 40. Kd2 {[%clk 0:01:39]} 40... Be6
{[%clk 0:00:06.3]} 41. Bg6 {[%clk 0:01:38.6]} 41... Bd5 {[%clk 0:00:04.2]} 42.
Bh7 {[%clk 0:01:36.9]} 42... Bb7 {[%clk 0:00:03.3]} 43. Bg6 {[%clk 0:01:36.9]}
43... Ba6 {[%clk 0:00:03.4]} 44. Bh7 {[%clk 0:01:36.7]} 44... Bb5 {[%clk
0:00:04]} 45. Bg6 {[%clk 0:01:36.8]} 45... Ba6 {[%clk 0:00:04.6]} 46. Bh7 {[%clk
0:01:37.1]} 46... Bb5 {[%clk 0:00:05.2]} 47. Bg6 {[%clk 0:01:37.3]} 47... Ba6
{[%clk 0:00:06.1]} 1/2-1/2

[Event "*** Titled Tuesday Blitz"]
[Site "Chess.com"]
[Date "2021.03.09"]
[Round "5"]
[White "Elshan1985"]
[Black "Leonid_Starozhilov"]
[Result "1-0"]
[WhiteElo "2888"]
[BlackElo "2692"]
[TimeControl "180+1"]
[EndTime "10:57:46 PST"]
[Termination "Elshan1985 won by resignation"]

1. Nf3 {[%clk 0:03:00.9]} 1... Nf6 {[%clk 0:03:00]} 2. d4 {[%clk 0:02:57]} 2...
g6 {[%clk 0:03:00.9]} 3. Bg5 {[%clk 0:02:56]} 3... Bg7 {[%clk 0:03:00.4]} 4.
Nbd2 {[%clk 0:02:56.6]} 4... d5 {[%clk 0:03:01]} 5. c3 {[%clk 0:02:53.3]} 5...
c6 {[%clk 0:03:00.8]} 6. e3 {[%clk 0:02:51.8]} 6... Bf5 {[%clk 0:03:01.1]} 7.
Qb3 {[%clk 0:02:50.8]} 7... Qb6 {[%clk 0:03:01]} 8. Be2 {[%clk 0:02:50.2]} 8...
O-O {[%clk 0:02:59.3]} 9. O-O {[%clk 0:02:50.1]} 9... Nbd7 {[%clk 0:02:59.2]}
10. Nh4 {[%clk 0:02:45.7]} 10... Be6 {[%clk 0:02:36.2]} 11. Bf4 {[%clk
0:02:43.6]} 11... h6 {[%clk 0:02:32.7]} 12. Nhf3 {[%clk 0:02:43.6]} 12... Bf5
{[%clk 0:02:28.3]} 13. c4 {[%clk 0:02:42.3]} 13... e6 {[%clk 0:02:23.3]} 14. h3
{[%clk 0:02:41.5]} 14... g5 {[%clk 0:02:22.3]} 15. Bh2 {[%clk 0:02:40.7]} 15...
Ne4 {[%clk 0:02:20.7]} 16. Nxe4 {[%clk 0:02:39.5]} 16... Bxe4 {[%clk 0:02:21.1]}
17. Nd2 {[%clk 0:02:39.8]} 17... Bg6 {[%clk 0:02:16.4]} 18. c5 {[%clk 0:02:40]}
18... Qxb3 {[%clk 0:02:04.5]} 19. Nxb3 {[%clk 0:02:39.5]} 19... b6 {[%clk
0:02:05.4]} 20. Rfc1 {[%clk 0:02:33.2]} 20... b5 {[%clk 0:01:34.9]} 21. a4
{[%clk 0:02:31.5]} 21... a6 {[%clk 0:00:20.4]} 22. Na5 {[%clk 0:02:30.2]} 22...
Rac8 {[%clk 0:00:18.3]} 23. axb5 {[%clk 0:02:19.1]} 23... axb5 {[%clk
0:00:19.2]} 24. Nxc6 {[%clk 0:02:16.9]} 24... Rxc6 {[%clk 0:00:20.1]} 25. Bxb5
{[%clk 0:02:16.9]} 25... Rfc8 {[%clk 0:00:17.7]} 26. Bxc6 {[%clk 0:02:17.2]}
26... Rxc6 {[%clk 0:00:18.4]} 27. b4 {[%clk 0:02:17.5]} 27... Bd3 {[%clk
0:00:18.4]} 28. Ra5 {[%clk 0:02:13.1]} 28... Rc8 {[%clk 0:00:06.4]} 29. b5
{[%clk 0:02:01.2]} 29... e5 {[%clk 0:00:06.5]} 30. c6 {[%clk 0:01:59.2]} 30...
exd4 {[%clk 0:00:06.5]} 31. Rd1 {[%clk 0:01:50]} 31... dxe3 {[%clk 0:00:05.4]}
32. Rxd3 {[%clk 0:01:45.2]} 32... e2 {[%clk 0:00:05.4]} 33. Re3 {[%clk
0:01:38.5]} 33... Bc3 {[%clk 0:00:04.9]} 34. cxd7 {[%clk 0:01:32.7]} 34... Rd8
{[%clk 0:00:05]} 35. Ra7 {[%clk 0:01:15.5]} 35... e1=Q+ {[%clk 0:00:04.1]} 36.
Rxe1 {[%clk 0:01:15.4]} 36... Bxe1 {[%clk 0:00:05]} 37. Be5 {[%clk 0:01:13.1]}
37... Bb4 {[%clk 0:00:04.2]} 1-0

[Event "*** Titled Tuesday Blitz"]
[Site "Chess.com"]
[Date "2021.03.09"]
[Round "5"]
[White "IECS12"]
[Black "konradrutkowski"]
[Result "0-1"]
[WhiteElo "2227"]
[BlackElo "2387"]
[TimeControl "180+1"]
[EndTime "10:57:46 PST"]
[Termination "konradrutkowski won by resignation"]

1. d4 {[%clk 0:03:00.9]} 1... Nf6 {[%clk 0:01:24.2]} 2. Bf4 {[%clk 0:02:58.6]}
2... g6 {[%clk 0:01:25.1]} 3. Nc3 {[%clk 0:02:58]} 3... Bg7 {[%clk 0:01:26]} 4.
e4 {[%clk 0:02:58]} 4... O-O {[%clk 0:01:26.9]} 5. Qd2 {[%clk 0:02:58.3]} 5...
d6 {[%clk 0:01:27.8]} 6. O-O-O {[%clk 0:02:58.5]} 6... c5 {[%clk 0:01:28.7]} 7.
dxc5 {[%clk 0:02:58]} 7... Qa5 {[%clk 0:01:24.4]} 8. cxd6 {[%clk 0:02:57.7]}
8... exd6 {[%clk 0:01:25.3]} 9. Bxd6 {[%clk 0:02:54.7]} 9... Re8 {[%clk
0:01:22.7]} 10. f3 {[%clk 0:02:50.5]} 10... Nc6 {[%clk 0:01:22.2]} 11. Bc4
{[%clk 0:02:49.3]} 11... Be6 {[%clk 0:01:21.9]} 12. Bxe6 {[%clk 0:02:38.6]}
12... Rxe6 {[%clk 0:01:21.4]} 13. Bf4 {[%clk 0:02:27.2]} 13... Nh5 {[%clk
0:01:16.6]} 14. Be3 {[%clk 0:02:23.7]} 14... Rd8 {[%clk 0:01:10]} 15. Qe2 {[%clk
0:02:17.6]} 15... Rxd1+ {[%clk 0:01:04.4]} 16. Nxd1 {[%clk 0:02:04.6]} 16...
Qxa2 {[%clk 0:01:02]} 17. c3 {[%clk 0:02:04.9]} 17... Na5 {[%clk 0:00:56.1]} 18.
Nh3 {[%clk 0:01:55.9]} 18... Nc4 {[%clk 0:00:43.9]} 19. Qc2 {[%clk 0:01:51.3]}
19... Nxe3 {[%clk 0:00:38.7]} 20. Nxe3 {[%clk 0:01:52.2]} 20... Bh6 {[%clk
0:00:38.5]} 21. Re1 {[%clk 0:01:50.4]} 21... Rd6 {[%clk 0:00:33.1]} 22. g3
{[%clk 0:01:15.4]} 22... Qa1+ {[%clk 0:00:26.3]} 23. Qb1 {[%clk 0:01:09.9]}
23... Bxe3+ {[%clk 0:00:26.7]} 24. Kc2 {[%clk 0:01:08.5]} 24... Rd2+ {[%clk
0:00:26]} 25. Kb3 {[%clk 0:01:07.2]} 25... Qa5 {[%clk 0:00:21.4]} 26. Rxe3
{[%clk 0:01:03]} 26... Qb6+ {[%clk 0:00:21.4]} 27. Ka2 {[%clk 0:01:03]} 27...
Qxe3 {[%clk 0:00:21.4]} 28. g4 {[%clk 0:01:03.6]} 28... Nf4 {[%clk 0:00:20.8]}
29. Nxf4 {[%clk 0:01:03.3]} 29... Qxf4 {[%clk 0:00:21.7]} 30. Qf1 {[%clk
0:01:02.2]} 30... Qe5 {[%clk 0:00:21]} 31. Qc4 {[%clk 0:01:01.9]} 31... Qa5+
{[%clk 0:00:19.9]} 32. Kb1 {[%clk 0:01:01.4]} 32... Qb6 {[%clk 0:00:19.1]} 33.
b4 {[%clk 0:00:52.9]} 33... Qg1+ {[%clk 0:00:18.1]} 0-1